bitfinex/quotes_BTCUSD_20250602
["timestamp","ask_amount","ask_price","bid_price","bid_amount"]
[1748883677077,0.05675346,104410.0,104400.0,0.29254626]
[1748883677078,0.04777318,104410.0,104400.0,0.29254626]
[1748883677343,0.04977318,104410.0,104400.0,0.29354626]
[1748883677554,0.05935043,104410.0,104400.0,0.27446147]
[1748883677784,0.0491758,104410.0,104400.0,0.27446147]
[1748883678003,0.25030573,104410.0,104400.0,0.26488357]
[1748883678218,0.2413258,104410.0,104400.0,0.26488357]
[1748883678434,0.0593508,104410.0,104400.0,0.27446147]
[1748883678634,0.04917593,104410.0,104400.0,0.27446147]
[1748883678883,0.04019583,104410.0,104400.0,0.27446147]
[1748883679112,0.03959872,104410.0,104400.0,0.27446147]
[1748883679327,0.07803152,104410.0,104400.0,0.27446147]
[1748883679554,0.04930076,104410.0,104400.0,0.38031577]
[1748883679849,0.01146498,104410.0,104400.0,0.38031577]
[1748883680095,0.01146498,104410.0,104400.0,0.37985777]
[1748883680542,0.00946498,104410.0,104400.0,0.37885777]
[1748883680757,0.00946498,104410.0,104400.0,0.37985777]
[1748883680975,0.00946498,104410.0,104400.0,0.38085777]
[1748883681450,0.07744136,104410.0,104400.0,0.38085777]
[1748883681691,0.02861876,104410.0,104400.0,0.38085777]
[1748883681920,0.04777336,104410.0,104400.0,0.2467275]
[1748883682143,0.04777327,104410.0,104400.0,0.24928348]
[1748883682795,0.03819592,104410.0,104400.0,0.26208348]
[1748883683216,0.03819601,104410.0,104400.0,0.26208348]
[1748883683431,0.00946498,104410.0,104400.0,0.26208348]
[1748883683644,0.00946498,104410.0,104400.0,0.36793778]
[1748883690955,0.00946498,104410.0,104400.0,0.70793778]
[1748883692282,0.01844328,104410.0,104400.0,0.70793778]
[1748883692565,0.00946498,104410.0,104400.0,0.70793778]
[1748883694083,0.04717459,104410.0,104400.0,0.70793778]
[1748883694323,0.04717459,104410.0,104400.0,0.0968543]
[1748883694324,0.22915176,104410.0,104400.0,0.0968543]
[1748883694529,0.01915589,104400.0,104390.0,0.23031067]
[1748883694757,0.02873415,104400.0,104390.0,0.35184378]
[1748883695014,0.22030558,104400.0,104390.0,0.30354353]
[1748883695247,0.22030558,104400.0,104380.0,0.24947586]
[1748883695248,0.00957872,104390.0,104380.0,0.24947586]
[1748883695467,0.01915607,104400.0,104390.0,0.22032678]
[1748883695677,0.2388648,104400.0,104390.0,0.22990559]
[1748883695892,0.22988385,104400.0,104390.0,0.22332678]
[1748883696104,0.2388648,104400.0,104390.0,0.22332696]
[1748883696324,0.03831297,104400.0,104390.0,0.23948487]
[1748883696558,0.22988385,104400.0,104390.0,0.22990596]
[1748883696810,0.22988385,104400.0,104390.0,0.22032696]
[1748883697031,0.22988385,104400.0,104390.0,0.22990596]
[1748883697250,0.22988385,104400.0,104390.0,0.23090596]
[1748883697480,0.22988385,104400.0,104390.0,0.21174787]
[1748883697701,0.22030595,104400.0,104390.0,0.22132723]
[1748883697911,0.22030595,104400.0,104390.0,0.23090632]
[1748883698133,0.22030595,104400.0,104390.0,0.24048477]
[1748883698351,0.01915653,104400.0,104390.0,0.24048422]
[1748883698570,0.01915653,104400.0,104390.0,0.24248422]
[1748883699462,0.21072741,104400.0,104390.0,0.24248422]
[1748883699680,0.22030586,104400.0,104390.0,0.24248422]
[1748883699865,0.01915607,104400.0,104390.0,0.24248422]
[1748883700112,0.02873443,104400.0,104390.0,0.24248422]
[1748883701700,0.0095779,104400.0,104390.0,0.24248422]
[1748883701923,0.02873415,104400.0,104390.0,0.25808422]
[1748883702140,0.01915589,104400.0,104390.0,0.25808422]
[1748883702353,0.2291535,104410.0,104400.0,0.2203054]
[1748883702570,0.23813408,104410.0,104400.0,0.20114933]
[1748883702783,0.2291535,104410.0,104400.0,0.20114933]
[1748883702998,0.01915597,104400.0,104390.0,0.24624676]
[1748883703221,0.02873405,104400.0,104390.0,0.22934713]
[1748883703435,0.02873378,104400.0,104390.0,0.22934713]
[1748883703643,0.03831195,104400.0,104390.0,0.22834713]
[1748883704310,0.04789021,104400.0,104390.0,0.22634713]
[1748883704559,0.25567271,104400.0,104390.0,0.22132659]
[1748883704780,0.25567271,104400.0,104390.0,0.21174768]
[1748883704999,0.06410183,104400.0,104390.0,0.22132649]
[1748883705227,0.03831296,104400.0,104390.0,0.22332649]
[1748883705700,0.02873451,104400.0,104390.0,0.25582649]
[1748883705911,0.03831287,104400.0,104390.0,0.25582649]
[1748883706124,0.04789132,104400.0,104390.0,0.25582649]
[1748883706328,0.03831287,104400.0,104390.0,0.25582649]
[1748883706555,0.04789132,104400.0,104390.0,0.25582649]
[1748883706776,0.23946266,104400.0,104390.0,0.25582649]
[1748883707208,0.23946266,104400.0,104390.0,0.22954768]
[1748883707424,0.26210347,104400.0,104390.0,0.22954777]
[1748883707641,0.26210347,104400.0,104390.0,0.23912686]
[1748883707855,0.26210347,104400.0,104390.0,0.24870586]
[1748883708104,0.26210347,104400.0,104390.0,0.25828477]
[1748883708546,0.25252521,104400.0,104390.0,0.22954777]
[1748883708761,0.22030623,104400.0,104390.0,0.24870568]
[1748883709209,0.22030623,104400.0,104390.0,0.22332686]
[1748883709431,0.21714942,104400.0,104390.0,0.003]
[1748883709672,0.21714942,104400.0,104360.0,0.22750845]
[1748883709673,0.22036817,104370.0,104360.0,0.22750845]
[1748883709888,0.22994946,104370.0,104360.0,0.33294468]
[1748883710108,0.22994946,104370.0,104360.0,0.22997177]
[1748883710330,0.01916121,104370.0,104360.0,0.24667177]
[1748883710552,0.02874223,104370.0,104360.0,0.24667177]
[1748883710770,0.02874214,104370.0,104360.0,0.24667177]
[1748883711005,0.01916112,104370.0,104360.0,0.24667177]
[1748883711231,0.22992761,104380.0,104370.0,0.21078807]
[1748883711449,0.23041157,104380.0,104370.0,0.2203689]
[1748883711662,0.23041157,104380.0,104370.0,0.22994964]
[1748883711877,0.23041157,104380.0,104370.0,0.20120714]
[1748883712092,0.23041157,104380.0,104370.0,0.21078816]
[1748883712328,0.23041157,104380.0,104370.0,0.22136909]
[1748883712767,0.23041157,104380.0,104370.0,0.21178816]
[1748883712995,0.26586315,104380.0,104370.0,0.21178825]
[1748883713635,0.22083193,104380.0,104370.0,0.23095001]
[1748883713858,0.01916002,104380.0,104370.0,0.23095001]
[1748883714080,0.02874021,104380.0,104370.0,0.24053066]
[1748883714329,0.20076801,104390.0,104380.0,0.21076769]
[1748883714330,0.00957909,104390.0,104380.0,0.21076769]
[1748883714576,0.23004482,104390.0,104380.0,0.21076787]
[1748883715365,0.22046601,104390.0,104380.0,0.21076787]
[1748883715737,0.22046582,104390.0,104380.0,0.20118786]
[1748883715910,0.22046582,104390.0,104380.0,0.21076805]
[1748883716569,0.22546582,104390.0,104380.0,0.21176805]
[1748883717008,0.03387659,104390.0,104380.0,0.23092807]
[1748883717221,0.22546582,104390.0,104380.0,0.22134815]
[1748883717461,0.03387659,104390.0,104380.0,0.24792797]
[1748883717682,0.03387659,104390.0,104380.0,0.2575077]
[1748883717904,0.22546619,104390.0,104380.0,0.001]
[1748883718116,0.21588701,104390.0,104380.0,0.001]
[1748883718563,0.23288701,104390.0,104380.0,0.001]
[1748883718987,0.26209501,104390.0,104380.0,0.001]
[1748883720057,5.28246801,104390.0,104380.0,0.001]
[1748883720241,5.37832231,104390.0,104380.0,0.001]
[1748883720484,5.47083353,104390.0,104380.0,0.001]
[1748883721832,5.47083353,104390.0,104350.0,0.0216]
[1748883721833,0.20122623,104360.0,104350.0,0.0216]
[1748883722065,5.22039923,104360.0,104350.0,0.0043]
[1748883722285,5.22039923,104360.0,104320.0,0.0338]
[1748883722286,0.2108687,104330.0,104320.0,0.0338]
[1748883722517,0.2108687,104330.0,104320.0,0.25427498]
[1748883722518,0.01916929,104330.0,104320.0,0.25427498]
[1748883722766,0.01916929,104330.0,104320.0,0.26386022]
[1748883722997,0.01916855,104330.0,104320.0,0.26386022]
[1748883723205,0.03833765,104330.0,104320.0,0.26386022]
[1748883723447,0.02875296,104330.0,104320.0,0.26386022]
[1748883723653,0.00958368,104340.0,104330.0,0.2108687]
[1748883723840,0.21084812,104340.0,104330.0,0.2108687]
[1748883724081,0.22043198,104340.0,104330.0,0.2108687]
[1748883724505,0.20127769,104350.0,104330.0,0.2012841]
[1748883724722,0.21082856,104350.0,104330.0,0.25375284]
[1748883724938,0.01916736,104340.0,104330.0,0.25375284]
[1748883725154,0.02875113,104340.0,104330.0,0.23785302]
[1748883725365,0.07654815,104340.0,104330.0,0.23785302]
[1748883725574,0.04598835,104340.0,104330.0,0.23785302]
[1748883725786,0.05557221,104340.0,104330.0,0.25243734]
[1748883725995,0.01916727,104340.0,104330.0,0.25243734]
[1748883726174,0.02016727,104340.0,104330.0,0.26243734]
[1748883726406,0.02016672,104340.0,104330.0,0.27833734]
[1748883726617,0.001,104340.0,104330.0,0.38419164]
[1748883728521,0.04450078,104360.0,104350.0,0.23781078]
[1748883728746,0.06366493,104360.0,104350.0,0.25401078]
[1748883728973,0.25530923,104360.0,104350.0,0.22822829]
[1748883729185,0.01916506,104350.0,104340.0,0.24294766]
[1748883729395,0.01916506,104350.0,104340.0,0.33880196]
[1748883729610,0.02874736,104350.0,104340.0,0.33880196]
[1748883729823,0.24814554,104360.0,104340.0,0.34880196]
[1748883730025,0.24972775,104360.0,104350.0,0.22041123]
[1748883730255,0.24572775,104360.0,104350.0,0.21082865]
[1748883730481,0.04450069,104360.0,104350.0,0.2299939]
[1748883730701,0.04450069,104360.0,104350.0,0.2625939]
[1748883730989,0.06366484,104360.0,104350.0,0.2625939]
[1748883731200,0.03491885,104360.0,104350.0,0.2625939]
[1748883731412,0.25372693,104360.0,104350.0,0.25301141]
[1748883731620,0.26330886,104360.0,104350.0,0.26259399]
[1748883731824,0.26330886,104360.0,104350.0,0.24669399]
[1748883732035,0.25372729,104360.0,104350.0,0.23711141]
[1748883732262,0.24414554,104360.0,104350.0,0.0167]
[1748883732484,0.00958285,104350.0,104340.0,0.22043245]
[1748883732690,0.00958267,104350.0,104340.0,0.23001585]
[1748883732897,0.00958267,104350.0,104340.0,0.26251585]
[1748883733102,0.00958239,104350.0,104340.0,0.2529318]
[1748883733316,0.01916515,104350.0,104340.0,0.2529318]
[1748883733725,0.01916515,104350.0,104340.0,0.2569318]
[1748883733933,0.02874764,104350.0,104340.0,0.2569318]
[1748883734144,0.03833059,104350.0,104340.0,0.2609318]
[1748883734349,0.04791363,104350.0,104340.0,0.2609318]
[1748883734566,0.22999326,104350.0,104340.0,0.2513484]
[1748883734785,0.2373179,104350.0,104340.0,0.008]
[1748883735028,0.2537179,104350.0,104340.0,0.008]
[1748883735228,5.2566909,104350.0,104340.0,0.008]
[1748883737513,5.23020138,104350.0,104340.0,0.008]
[1748883739600,5.69679653,104350.0,104340.0,0.008]
[1748883739816,5.69679653,104350.0,104320.0,0.00048396]
[1748883739817,0.2108687,104330.0,104320.0,0.00048396]
[1748883740662,0.2108687,104330.0,104320.0,0.19220175]
[1748883740877,0.03833821,104330.0,104320.0,0.26354363]
[1748883741085,0.22045339,104330.0,104320.0,0.25895858]
[1748883741308,0.21086888,104330.0,104320.0,0.24937306]
[1748883741519,0.01916763,104340.0,104330.0,0.22045302]
[1748883741724,0.22043227,104340.0,104330.0,0.23518428]
[1748883741946,0.21084868,104340.0,104330.0,0.22559941]
[1748883742153,0.21084868,104340.0,104330.0,0.23518428]
[1748883742379,0.21084868,104340.0,104330.0,0.24476897]
[1748883742587,0.01916764,104340.0,104330.0,0.26593789]
[1748883742832,0.22043273,104340.0,104330.0,0.25635357]
[1748883743037,0.22043273,104340.0,104330.0,0.26593808]
[1748883743252,0.22043273,104340.0,104330.0,0.26693808]
[1748883743501,0.22043273,104340.0,104330.0,0.23818428]
[1748883743713,0.27647463,104340.0,104330.0,0.0198]
[1748883743967,0.27647463,104340.0,104330.0,0.003]
[1748883744204,0.27647463,104340.0,104330.0,0.20428419]
[1748883744423,0.26689058,104340.0,104330.0,0.20428419]
[1748883744676,0.53166267,104350.0,104330.0,0.23985367]
[1748883744922,0.22043254,104340.0,104330.0,0.25615367]
[1748883745171,0.20124571,104350.0,104340.0,0.20126509]
[1748883745635,0.20124571,104350.0,104340.0,0.20457982]
[1748883745867,0.21082847,104350.0,104340.0,0.21416359]
[1748883746144,0.02716525,104350.0,104340.0,0.24054709]
[1748883746370,0.01916507,104350.0,104340.0,0.25013049]
[1748883746589,0.03833069,104350.0,104340.0,0.25013049]
[1748883746804,0.05733059,104350.0,104340.0,0.25213049]
[1748883746986,0.06691363,104350.0,104340.0,0.25213049]
[1748883747754,0.28696646,104350.0,104340.0,0.23296359]
[1748883748008,0.27738388,104350.0,104340.0,0.24254718]
[1748883748216,0.27738388,104350.0,104340.0,0.25213068]
[1748883750284,0.24899436,104350.0,104340.0,0.25213068]
[1748883750707,0.04774847,104350.0,104340.0,0.25213003]
[1748883750926,0.24899418,104350.0,104340.0,0.21379577]
[1748883751107,0.24899418,104350.0,104340.0,0.23296322]
[1748883751357,0.03816506,104350.0,104340.0,0.24254681]
[1748883751565,0.019,104350.0,104340.0,0.25213021]
[1748883751772,0.019,104350.0,104340.0,0.34798451]
[1748883751976,0.0285823,104350.0,104340.0,0.34798451]
[1748883752392,0.019,104350.0,104340.0,0.34798451]
[1748883752605,0.019,104350.0,104340.0,0.35798451]
[1748883754912,0.01,104350.0,104340.0,0.35698451]
[1748883755116,0.01,104350.0,104340.0,0.69698451]
[1748883755331,0.01,104350.0,104340.0,0.69898451]
[1748883756187,0.02533728,104360.0,104350.0,0.26331096]
[1748883756402,0.02533728,104360.0,104350.0,0.35916526]
[1748883756613,0.02874223,104370.0,104360.0,0.25338983]
[1748883756824,0.06258693,104370.0,104360.0,0.25338983]
[1748883757049,0.01916112,104370.0,104360.0,0.25338983]
[1748883757512,0.00958047,104370.0,104360.0,0.25338983]
[1748883757714,0.01916112,104370.0,104360.0,0.25338983]
[1748883757949,0.01930017,104370.0,104360.0,0.25338983]
[1748883758150,0.01871952,104370.0,104360.0,0.25538983]
[1748883758355,0.02830008,104370.0,104360.0,0.25538983]
[1748883758721,0.02713905,104370.0,104360.0,0.25738983]
[1748883758928,0.06081514,104370.0,104360.0,0.35324413]
[1748883759083,0.0703957,104370.0,104360.0,0.35324413]
[1748883759286,0.07039561,104370.0,104360.0,0.35324413]
[1748883759927,0.07997626,104370.0,104360.0,0.35324413]
[1748883760167,0.07039561,104370.0,104360.0,0.35324413]
[1748883760508,0.07997617,104370.0,104360.0,0.35324413]
[1748883761145,0.07039561,104370.0,104360.0,0.35324413]
[1748883761550,0.07997617,104370.0,104360.0,0.35324413]
[1748883761784,0.09913811,104370.0,104360.0,0.35324413]
[1748883762898,0.28211914,104370.0,104360.0,0.004]
[1748883763109,0.31511914,104370.0,104360.0,0.004]
[1748883763307,0.76551429,104370.0,104360.0,0.004]
[1748883763897,5.76848729,104370.0,104360.0,0.004]
[1748883764094,5.80083977,104370.0,104360.0,0.004]
[1748883765411,5.80083977,104370.0,104340.0,0.24701392]
[1748883765412,0.22041096,104350.0,104340.0,0.24701392]
[1748883765977,0.22999409,104350.0,104340.0,0.25659751]
[1748883766182,0.0287482,104350.0,104340.0,0.27239695]
[1748883766411,0.22041087,104350.0,104340.0,0.27239695]
[1748883766608,0.01916525,104350.0,104340.0,0.27439695]
[1748883766808,0.21082505,104360.0,104350.0,0.22762829]
[1748883767084,0.20124312,104360.0,104340.0,0.25502886]
[1748883767398,0.01916525,104350.0,104340.0,0.25702886]
[1748883767625,0.02874755,104350.0,104340.0,0.25702886]
[1748883767771,0.02874755,104350.0,104340.0,0.25502886]
[1748883767972,0.0383305,104350.0,104340.0,0.25502886]
[1748883768184,0.0383305,104350.0,104340.0,0.25402886]
[1748883768399,0.0383304,104350.0,104340.0,0.25402886]
[1748883768866,0.0383304,104350.0,104340.0,0.25502886]
[1748883769886,0.26433346,104350.0,104340.0,0.24444564]
[1748883770086,0.25475116,104350.0,104340.0,0.23486251]
[1748883770356,0.24516867,104350.0,104340.0,0.24544628]
[1748883770567,0.24516867,104350.0,104340.0,0.23922978]
[1748883770704,0.24516867,104350.0,104340.0,0.22964628]
[1748883771125,0.23558591,104350.0,104340.0,0.002]
[1748883771328,5.27225891,104350.0,104340.0,0.002]
[1748883771709,0.25298591,104350.0,104340.0,0.002]
[1748883775065,0.26908591,104350.0,104340.0,0.002]
[1748883776650,5.38245406,104350.0,104340.0,0.002]
[1748883776788,5.41482937,104350.0,104340.0,0.002]
[1748883777183,5.41482835,104350.0,104340.0,0.002]
[1748883778326,5.38245406,104350.0,104340.0,0.002]
[1748883780202,5.36635406,104350.0,104340.0,0.002]
[1748883780329,5.01255585,104350.0,104340.0,0.22243208]
[1748883780533,0.20124552,104350.0,104340.0,0.24474868]
[1748883780785,0.20124552,104350.0,104340.0,0.235165]
[1748883780962,0.20124552,104350.0,104340.0,0.24474886]
[1748883781163,0.27453616,104350.0,104340.0,0.25433254]
[1748883781425,0.30328528,104350.0,104340.0,0.24474886]
[1748883781633,0.30192528,104350.0,104340.0,0.24474886]
[1748883782147,0.01780543,104350.0,104340.0,0.26391631]
[1748883782302,0.02738856,104350.0,104340.0,0.26391631]
[1748883782510,0.22863418,104350.0,104340.0,0.27349971]
[1748883782713,0.2190516,104350.0,104340.0,0.25433263]
[1748883782871,0.00958313,104350.0,104340.0,0.25433263]
[1748883783077,0.2012458,104350.0,104340.0,0.25433263]
[1748883783485,0.21082875,104350.0,104340.0,0.25433263]
[1748883784900,0.19166267,104350.0,104340.0,0.018]
[1748883785124,0.19166267,104350.0,104340.0,0.22884905]
[1748883786563,0.19166267,104350.0,104340.0,0.23536509]
[1748883786846,0.26399503,104350.0,104340.0,0.0341]
[1748883787001,0.26399503,104350.0,104340.0,0.002]
[1748883787207,0.28039503,104350.0,104340.0,0.002]
[1748883787381,5.30016803,104350.0,104340.0,0.002]
[1748883787630,5.75056318,104350.0,104340.0,0.002]
[1748883788792,5.67823082,104350.0,104340.0,0.002]
[1748883792241,5.66143082,104350.0,104340.0,0.002]
[1748883792450,5.69021482,104350.0,104340.0,0.002]
[1748883792862,0.21086833,104330.0,104320.0,0.26226012]
[1748883793293,0.2204532,104330.0,104320.0,0.25267469]
[1748883793958,0.2204532,104330.0,104320.0,0.24808917]
[1748883794164,0.22054584,104330.0,104320.0,0.24808917]
[1748883795248,0.20137692,104330.0,104320.0,0.23850356]
[1748883795485,0.20137692,104330.0,104320.0,0.25208917]
[1748883796127,0.20137692,104330.0,104320.0,0.2616746]
[1748883796776,0.20137692,104330.0,104320.0,0.25208917]
[1748883797187,0.20137692,104330.0,104320.0,0.24250356]
[1748883797605,0.20137692,104330.0,104320.0,0.26167487]
[1748883798324,0.20137692,104330.0,104320.0,0.24250356]
[1748883798325,0.24025233,104330.0,104320.0,0.24250356]
[1748883798537,0.23066746,104330.0,104320.0,0.009]
[1748883798765,0.21092917,104300.0,104290.0,0.24379452]
[1748883798989,0.01917462,104300.0,104290.0,0.24338289]
[1748883799201,0.2205168,104300.0,104290.0,0.25297116]
[1748883799412,0.23010452,104300.0,104290.0,0.26255934]
[1748883799618,0.23010452,104300.0,104290.0,0.25297116]
[1748883800035,0.23010452,104300.0,104290.0,0.25897116]
[1748883800243,0.23010452,104300.0,104290.0,0.25297116]
[1748883800676,0.22051735,104300.0,104290.0,0.25697116]
[1748883801315,0.2454819,104300.0,104290.0,0.004]
[1748883801524,0.2454819,104300.0,104290.0,0.007]
[1748883802152,0.2454819,104300.0,104290.0,0.21217294]
[1748883802358,0.20234227,104300.0,104290.0,0.21217294]
[1748883802567,0.20234227,104300.0,104290.0,0.24844976]
[1748883802980,0.20234227,104300.0,104290.0,0.0335]
[1748883803184,0.20234227,104300.0,104290.0,0.0164]
[1748883803387,0.20136149,104290.0,104280.0,0.25207941]
[1748883803590,0.20136149,104290.0,104280.0,0.35752309]
[1748883803799,0.01917692,104290.0,104280.0,0.36711238]
[1748883804006,0.01917692,104290.0,104280.0,0.37670157]
[1748883804007,0.21094986,104290.0,104280.0,0.37670157]
[1748883804207,0.21094986,104290.0,104280.0,0.38629067]
[1748883804328,0.06201935,104290.0,104280.0,0.38629012]
[1748883804535,0.05190966,104300.0,104290.0,0.21094995]
[1748883804731,0.01917389,104300.0,104290.0,0.25413731]
[1748883804931,0.03834832,104300.0,104290.0,0.34999161]
[1748883805132,0.22049584,104310.0,104300.0,0.25201708]
[1748883805403,0.01917296,104310.0,104300.0,0.27119133]
[1748883805557,0.22049584,104310.0,104300.0,0.27119133]
[1748883805759,0.01917296,104310.0,104300.0,0.27119133]
[1748883806033,0.02875976,104310.0,104300.0,0.27119133]
[1748883806239,0.22049593,104310.0,104300.0,0.25201708]
[1748883806448,0.06998113,104310.0,104300.0,0.27119151]
[1748883806706,0.06998104,104310.0,104300.0,0.27119087]
[1748883806911,0.02875967,104310.0,104300.0,0.27119087]
[1748883807157,0.03834647,104310.0,104300.0,0.27119087]
[1748883807386,0.02875903,104310.0,104300.0,0.27119087]
[1748883807605,0.02975903,104310.0,104300.0,0.27119087]
[1748883807837,0.03934574,104310.0,104300.0,0.27119087]
[1748883808478,0.23108191,104310.0,104300.0,0.27119087]
[1748883808691,0.03934574,104310.0,104300.0,0.27119087]
[1748883808908,0.06089514,104310.0,104300.0,0.27119087]
[1748883809114,0.25263131,104310.0,104300.0,0.27119087]
[1748883809329,0.26221811,104310.0,104300.0,0.27119087]
[1748883809535,0.0225494,104310.0,104300.0,0.27119087]
[1748883809755,0.041722,104310.0,104300.0,0.27119087]
[1748883809956,0.04172181,104310.0,104300.0,0.27119087]
[1748883810390,0.03213538,104310.0,104300.0,0.27119087]
[1748883810600,0.05130807,104310.0,104300.0,0.27119087]
[1748883811707,0.05130779,104310.0,104300.0,0.27119087]
[1748883812133,0.001,104310.0,104300.0,0.37704517]
[1748883824004,0.01058598,104310.0,104300.0,0.37704517]
[1748883824223,0.23108146,104310.0,104300.0,0.32869657]
[1748883824442,0.21190932,104310.0,104300.0,0.20134227]
[1748883824647,0.25639448,104310.0,104300.0,0.21092981]
[1748883824873,0.01917453,104300.0,104290.0,0.25333702]
[1748883825087,0.02876143,104300.0,104290.0,0.35877923]
[1748883825751,0.02876133,104300.0,104290.0,0.35877923]
[1748883825956,0.00958699,104300.0,104290.0,0.36977923]
[1748883826161,0.00958699,104300.0,104290.0,0.37177923]
[1748883826398,0.23646821,104300.0,104290.0,0.34260406]
[1748883826611,0.06388865,104300.0,104290.0,0.31939206]
[1748883826822,0.00958699,104300.0,104290.0,0.33579206]
[1748883827063,0.25539393,104310.0,104300.0,0.21092954]
[1748883827267,0.25539439,104310.0,104300.0,0.20134218]
[1748883827682,0.23622133,104310.0,104300.0,0.19175455]
[1748883827888,0.23622133,104310.0,104300.0,0.20134227]
[1748883829250,0.23722133,104310.0,104300.0,0.20134227]
[1748883829702,0.24680813,104310.0,104300.0,0.19175455]
[1748883829904,0.20232297,104310.0,104300.0,0.21092972]
[1748883831361,0.01058625,104310.0,104300.0,0.26320416]
[1748883831567,0.001,104310.0,104300.0,0.26320416]
[1748883831782,0.001,104310.0,104300.0,0.36905846]
[1748883840436,0.001,104310.0,104300.0,0.70905846]
[1748883842427,0.001,104310.0,104300.0,0.69905846]
[1748883842638,0.01058616,104310.0,104300.0,0.36905846]
[1748883842854,0.001,104310.0,104300.0,0.36905846]
[1748883844824,0.02017223,104310.0,104300.0,0.36905846]
[1748883845033,0.02017205,104310.0,104300.0,0.36905846]
[1748883845247,0.07520119,104310.0,104300.0,0.35204572]
[1748883845516,0.07520119,104310.0,104300.0,0.33554572]
[1748883845741,0.25735257,104310.0,104300.0,0.31637138]
[1748883846005,0.27315257,104310.0,104300.0,0.32595864]
[1748883846239,0.26356604,104310.0,104300.0,0.31637138]
[1748883846456,0.25397942,104310.0,104300.0,0.31637138]
[1748883846691,0.00958736,104300.0,104290.0,0.23824921]
[1748883846938,0.0191749,104300.0,104290.0,0.33410351]
[1748883847397,0.01917481,104300.0,104290.0,0.33410351]
[1748883847598,0.05416043,104300.0,104290.0,0.33410351]
[1748883848102,0.05416043,104300.0,104290.0,0.33474351]
[1748883848319,0.02876235,104300.0,104290.0,0.33574351]
[1748883848560,0.00958708,104300.0,104290.0,0.35294351]
[1748883849004,0.00958699,104300.0,104290.0,0.36253132]
[1748883849219,0.01917407,104300.0,104290.0,0.36253132]
[1748883849459,0.21090923,104310.0,104300.0,0.21092972]
[1748883849673,0.031636,104320.0,104310.0,0.21090895]
[1748883849883,0.05080722,104320.0,104310.0,0.22049529]
[1748883850089,0.26169622,104320.0,104310.0,0.23709529]
[1748883850295,0.25211089,104320.0,104310.0,0.22750913]
[1748883850772,0.24252501,104320.0,104310.0,0.23709538]
[1748883851732,0.25552501,104320.0,104310.0,0.23809538]
[1748883852214,0.05422069,104320.0,104310.0,0.26488154]
[1748883852488,0.07580612,104320.0,104310.0,0.26588154]
[1748883852735,0.08539182,104320.0,104310.0,0.26588154]
[1748883853172,0.08539182,104320.0,104310.0,0.20332279]
[1748883853173,0.30251146,104320.0,104310.0,0.20332279]
[1748883853383,0.30014079,104320.0,104310.0,0.002]
[1748883853610,0.38310171,104320.0,104310.0,0.002]
[1748883854674,0.40104523,104320.0,104310.0,0.002]
[1748883854883,0.38310171,104320.0,104310.0,0.002]
[1748883855557,0.40104549,104320.0,104310.0,0.002]
[1748883855785,0.38310171,104320.0,104310.0,0.002]
[1748883856459,0.3831092,104320.0,104310.0,0.002]
[1748883858086,5.3860822,104320.0,104310.0,0.002]
[1748883858316,5.7260822,104320.0,104310.0,0.002]
[1748883858522,5.74402702,104320.0,104310.0,0.002]
[1748883858733,5.7260822,104320.0,104310.0,0.002]
[1748883859155,5.74402679,104320.0,104310.0,0.002]
[1748883859369,5.7260822,104320.0,104310.0,0.002]
[1748883859588,5.74402673,104320.0,104310.0,0.002]
[1748883859802,5.7260822,104320.0,104310.0,0.002]
[1748883860018,5.65981379,104320.0,104310.0,0.002]
[1748883860267,5.72608672,104320.0,104310.0,0.002]
[1748883860924,5.72608672,104320.0,104310.0,0.19373617]
[1748883860925,0.4038503,104320.0,104310.0,0.19373617]
[1748883861134,0.4916648,104320.0,104310.0,0.23208173]
[1748883861362,0.48207901,104320.0,104310.0,0.23208173]
[1748883861573,0.2950704,104320.0,104310.0,0.23208173]
[1748883861785,0.29507451,104320.0,104310.0,0.24868173]
[1748883862001,0.07580658,104320.0,104310.0,0.24868173]
[1748883862207,0.28669604,104320.0,104310.0,0.24868173]
[1748883862644,0.28669604,104320.0,104310.0,0.23909566]
[1748883863067,0.32329486,104320.0,104310.0,0.21992288]
[1748883863275,0.31370916,104320.0,104310.0,0.20332288]
[1748883863498,0.31370916,104320.0,104310.0,0.002]
[1748883863711,0.32072337,104320.0,104310.0,0.002]
[1748883863965,5.42546461,104320.0,104310.0,0.002]
[1748883864181,5.40749835,104320.0,104310.0,0.002]
[1748883865705,5.35172895,104320.0,104310.0,0.002]
[1748883866123,5.33422895,104320.0,104310.0,0.002]
[1748883867208,5.35219618,104320.0,104310.0,0.002]
[1748883867432,5.33422895,104320.0,104310.0,0.002]
[1748883867657,5.3522029,104320.0,104310.0,0.002]
[1748883867917,5.42674701,104320.0,104310.0,0.002]
[1748883869661,5.4447161,104320.0,104310.0,0.002]
[1748883869891,5.44364701,104320.0,104310.0,0.002]
[1748883870321,5.46161674,104320.0,104310.0,0.002]
[1748883870539,5.44364701,104320.0,104310.0,0.002]
[1748883870757,5.46161648,104320.0,104310.0,0.002]
[1748883870965,5.44364701,104320.0,104310.0,0.002]
[1748883871386,5.46161642,104320.0,104310.0,0.002]
[1748883872040,5.46161653,104320.0,104310.0,0.002]
[1748883872266,5.42674701,104320.0,104310.0,0.002]
[1748883873151,5.44471662,104320.0,104310.0,0.002]
[1748883873380,5.44471662,104320.0,104310.0,0.21290932]
[1748883873381,0.32424822,104320.0,104310.0,0.21290932]
[1748883873611,0.27711061,104320.0,104310.0,0.25599557]
[1748883874056,0.07580594,104320.0,104310.0,0.26558173]
[1748883874288,0.05663545,104320.0,104310.0,0.26558173]
[1748883874730,0.06622078,104320.0,104310.0,0.26558173]
[1748883874960,0.09162459,104320.0,104310.0,0.26558173]
[1748883875223,0.11079526,104320.0,104310.0,0.26558173]
[1748883875488,0.07580612,104320.0,104310.0,0.26558173]
[1748883875716,0.08539173,104320.0,104310.0,0.26558173]
[1748883875930,0.07580612,104320.0,104310.0,0.26558173]
[1748883876146,0.06622069,104320.0,104310.0,0.26558173]
[1748883876365,0.07580621,104320.0,104310.0,0.26558173]
[1748883876580,0.11507541,104320.0,104310.0,0.26558173]
[1748883877291,0.12466111,104320.0,104310.0,0.26558173]
[1748883878166,0.08539182,104320.0,104310.0,0.26558173]
[1748883878379,0.06622069,104320.0,104310.0,0.26558173]
[1748883878599,0.07580612,104320.0,104310.0,0.26558173]
[1748883879036,0.08539173,104320.0,104310.0,0.26558173]
[1748883879697,0.0470503,104320.0,104310.0,0.26558173]
[1748883879926,0.025,104320.0,104310.0,0.37143603]
[1748883881939,0.03458524,104320.0,104310.0,0.36143603]
[1748883882163,0.03458506,104320.0,104310.0,0.37143603]
[1748883883787,0.06374087,104320.0,104310.0,0.37143603]
[1748883884847,0.08291163,104320.0,104310.0,0.37143603]
[1748883885055,0.07332611,104320.0,104310.0,0.36143603]
[1748883885267,0.06374096,104320.0,104310.0,0.37143603]
[1748883885473,0.05415572,104320.0,104310.0,0.37143603]